bitfinex-derivatives/quotes_SOLF0:USTF0_20241208
["timestamp","ask_amount","ask_price","bid_price","bid_amount"]
[1733682301258,6.5987551,235.49,235.47,4.92584373]
[1733682301461,6.5987551,235.49,235.48,2.30458042]
[1733682302267,6.5987551,235.49,235.48,1.24265368]
[1733682302470,6.5987551,235.49,235.48,2.30458164]
[1733682302669,8.7205551,235.49,235.48,4.92641132]
[1733682302959,8.7205551,235.49,235.4,11.1680551]
[1733682302960,6.5987551,235.49,235.4,11.1680551]
[1733682303162,6.5987551,235.47,235.41,7.87948634]
[1733682303368,6.5987551,235.47,235.42,9.12248626]
[1733682303563,6.5987551,235.47,235.43,9.12248626]
[1733682303761,6.5987551,235.47,235.44,9.12248626]
[1733682303968,6.5987551,235.47,235.45,4.92712731]
[1733682304168,6.5987551,235.47,235.46,2.3050054]
[1733682304370,6.5987551,235.47,235.46,4.92804607]
[1733682304766,6.5987551,235.47,235.46,1.24299992]
[1733682305168,8.7207551,235.47,235.46,4.92809972]
[1733682305370,8.7207551,235.47,235.46,3.86673909]
[1733682305670,8.7207551,235.47,235.46,4.92878519]
[1733682305971,8.7207551,235.47,235.46,2.30504602]
[1733682306364,8.7207551,235.47,235.46,1.24299992]
[1733682306563,10.6007551,235.47,235.46,4.92902585]
[1733682306765,2.1223,235.45,235.36,8.4787551]
[1733682306963,6.5987551,235.42,235.37,6.8231248]
[1733682307162,6.5987551,235.42,235.38,6.8231248]
[1733682307368,6.5987551,235.42,235.39,8.9457248]
[1733682307567,1.88,235.47,235.4,6.8231248]
[1733682307771,6.5987551,235.41,235.34,8.4787551]
[1733682307968,8.7213551,235.41,235.36,2.123]
[1733682308163,6.5987551,235.39,235.37,6.82265324]
[1733682308368,6.5987551,235.39,235.38,6.82265324]
[1733682309776,6.5987551,235.41,235.38,6.82265324]
[1733682309970,6.5987551,235.41,235.39,6.82265324]
[1733682310171,6.5987551,235.41,235.4,6.82265324]
[1733682310373,8.7213551,235.41,235.4,2.6240974]
[1733682310968,6.5987551,235.41,235.4,2.6240974]
[1733682311173,6.5987551,235.41,235.36,2.1229]
[1733682311375,6.5987551,235.41,235.37,6.81839203]
[1733682311580,6.5987551,235.41,235.38,2.62245847]
[1733682311775,6.5987551,235.41,235.39,2.62245847]
[1733682311969,6.5987551,235.41,235.36,2.1229]
[1733682312175,6.5987551,235.41,235.37,6.81823657]
[1733682312371,6.5987551,235.41,235.38,2.62239868]
[1733682312577,6.5987551,235.41,235.39,2.62239868]
[1733682312775,6.5987551,235.41,235.36,2.1229]
[1733682313081,8.7212551,235.42,235.37,8.93914718]
[1733682313274,8.7212551,235.42,235.38,2.62163353]
[1733682313476,8.7212551,235.42,235.39,2.62163353]
[1733682313671,8.7212551,235.42,235.37,2.1229]
[1733682313876,1.88,235.47,235.38,9.21972678]
[1733682314077,8.7211551,235.43,235.39,2.62097168]
[1733682314272,8.7211551,235.43,235.38,2.1228]
[1733682314470,8.7211551,235.43,235.39,2.62047132]
[1733682314672,8.7211551,235.43,235.38,2.1228]
[1733682314873,8.7211551,235.43,235.39,2.62048188]
[1733682315073,6.5987551,235.41,235.38,2.1228]
[1733682315278,6.5987551,235.41,235.39,2.6204846]
[1733682315483,6.5987551,235.41,235.38,2.1228]
[1733682315685,6.5987551,235.41,235.39,2.62002498]
[1733682315882,6.5987551,235.41,235.38,2.1228]
[1733682318991,8.7213551,235.41,235.37,2.1229]
[1733682319189,8.7213551,235.41,235.38,1.23617486]
[1733682319388,8.7213551,235.41,235.37,2.1229]
[1733682320187,8.7213551,235.41,235.38,1.23594524]
[1733682320387,8.7213551,235.41,235.37,2.1229]
[1733682320583,8.7213551,235.41,235.35,6.5987551]
[1733682320886,8.7213551,235.41,235.36,7.03890026]
[1733682321088,2.1227,235.4,235.37,4.91590026]
[1733682321291,6.5987551,235.39,235.34,2.1231]
[1733682321491,6.5987551,235.39,235.35,4.9159555]
[1733682321791,6.5987551,235.39,235.36,4.9159555]
[1733682321989,6.5987551,235.39,235.33,6.5987551]
[1733682322182,8.7215551,235.39,235.34,11.22750569]
[1733682322382,6.5987551,235.37,235.35,4.91592005]
[1733682322590,6.5987551,235.37,235.29,7.9020551]
[1733682322791,2.123,235.36,235.31,2.1234]
[1733682322990,2.123,235.36,235.32,4.91581546]
[1733682323186,2.123,235.36,235.33,4.9160504]
[1733682323493,2.1231,235.35,235.31,2.1234]
[1733682324292,2.1231,235.35,235.29,7.9020551]
[1733682324293,6.5987551,235.35,235.29,7.9020551]
[1733682324489,6.5987551,235.35,235.3,4.91317646]
[1733682324793,6.5987551,235.35,235.29,7.9020551]
[1733682324990,6.5987551,235.35,235.3,4.91310796]
[1733682325191,6.5987551,235.35,235.29,6.5987551]
[1733682325593,8.7218551,235.35,235.3,2.1235]
[1733682326289,6.5987551,235.33,235.29,6.5987551]
[1733682326486,6.5987551,235.33,235.28,2.1236]
[1733682328793,6.5987551,235.33,235.27,6.5987551]
[1733682328991,6.5987551,235.31,235.27,6.5987551]
[1733682329691,6.5987551,235.31,235.27,8.7225551]
[1733682330995,6.5987551,235.31,235.27,6.5987551]
[1733682331201,6.5987551,235.31,235.28,2.1237]
[1733682331594,1.88,235.36,235.27,6.5987551]
[1733682331794,6.5987551,235.35,235.31,6.5987551]
[1733682332501,6.5987551,235.35,235.33,2.1232]
[1733682332705,6.5987551,235.35,235.23,3.1646]
[1733682332906,6.5987551,235.35,235.3,6.5987551]
[1733682333705,6.5987551,235.35,235.31,2.1234]
[1733682340408,6.5987551,235.35,235.29,6.5987551]
[1733682340709,6.5987551,235.35,235.32,2.1234]
[1733682341908,1.88,235.36,235.32,2.1234]
[1733682342110,6.5987551,235.35,235.33,2.1233]
[1733682342311,1.88,235.37,235.31,6.5987551]
[1733682342506,8.4787551,235.37,235.31,6.5987551]
[1733682342910,8.4787551,235.37,235.33,2.1232]
[1733682342911,6.5987551,235.35,235.33,2.1232]
[1733682343914,6.5987551,235.35,235.29,6.5987551]
[1733682344112,6.5987551,235.35,235.3,1.23268412]
[1733682344308,6.5987551,235.35,235.27,1.88]
[1733682344509,6.5987551,235.33,235.28,4.90742005]
[1733682344708,6.5987551,235.33,235.27,6.5987551]
[1733682344908,6.5987551,235.33,235.28,2.29572289]
[1733682345208,6.5987551,235.33,235.24,1.88]
[1733682345209,6.5987551,235.35,235.32,2.1233]
[1733682345612,6.5987551,235.35,235.33,2.1232]
[1733682346306,6.5987551,235.37,235.33,2.1232]
[1733682346706,8.7216551,235.37,235.24,1.88]
[1733682346908,6.5987551,235.35,235.31,2.1234]
[1733682349418,6.5987551,235.38,235.31,6.5987551]
[1733682350007,6.5987551,235.38,235.33,2.1233]
[1733682350412,6.5987551,235.36,235.33,2.1233]
[1733682350608,6.5987551,235.36,235.31,6.5987551]
[1733682350609,6.5987551,235.36,235.34,2.1232]
[1733682351809,6.5987551,235.36,235.29,8.4787551]
[1733682352017,6.5987551,235.36,235.3,9.1022708]
[1733682352214,6.5987551,235.36,235.31,4.91500274]
[1733682352416,6.5987551,235.36,235.32,7.03830274]
[1733682352616,6.5987551,235.34,235.28,6.5987551]
[1733682352918,6.5987551,235.34,235.29,9.10397798]
[1733682353121,6.5987551,235.34,235.3,9.10397979]
[1733682353316,6.5987551,235.34,235.31,4.91585994]
[1733682353511,6.5987551,235.34,235.28,6.5987551]
[1733682353819,6.5987551,235.34,235.29,9.10609446]
[1733682354015,8.7219551,235.34,235.3,7.0404992]
[1733682354215,8.7219551,235.34,235.3,2.1236]
[1733682356513,6.5987551,235.34,235.3,2.1236]
[1733682356719,6.5987551,235.34,235.27,2.1238]
[1733682356914,6.5987551,235.28,235.23,1.2846]
[1733682357116,6.5987551,235.3,235.23,1.2846]
[1733682357317,6.5987551,235.3,235.26,2.1239]
[1733682357818,6.5987551,235.3,235.27,4.91975532]
[1733682358018,6.5987551,235.3,235.26,2.1239]
[1733682358621,6.5987551,235.3,235.24,6.5987551]
[1733682358918,6.5987551,235.3,235.27,1.23694064]
[1733682359117,6.5987551,235.3,235.24,6.5987551]
[1733682359421,6.5987551,235.3,235.25,9.11418829]
[1733682359617,6.5987551,235.3,235.26,7.04474193]
[1733682359812,6.5987551,235.3,235.27,4.92084193]
[1733682360117,6.5987551,235.3,235.26,2.1239]
[1733682360320,6.5987551,235.28,235.27,4.9214206]
[1733682361718,1.88,235.34,235.27,4.9214206]
[1733682361923,6.5987551,235.3,235.24,6.5987551]
[1733682362124,1.88,235.33,235.26,6.5987551]
[1733682362325,1.88,235.33,235.27,9.11585529]
[1733682362326,6.5987551,235.33,235.27,9.11585529]
[1733682362520,2.642,235.46,235.33,2.1232]
[1733682362823,6.5987551,235.35,235.33,2.1232]
[1733682365124,6.5987551,235.35,235.34,2.1232]
[1733682365422,6.5987551,235.35,235.34,7.04681711]
[1733682365816,6.5987551,235.35,235.34,3.8610845]
[1733682366024,6.5987551,235.35,235.34,4.92361802]
[1733682370423,6.5987551,235.35,235.34,4.92462236]
[1733682373628,6.5987551,235.35,235.33,2.1233]
[1733682373923,2.642,235.46,235.34,4.92471248]
[1733682374130,6.5987551,235.41,235.35,11.52346758]
[1733682374332,6.5987551,235.41,235.36,9.12157223]
[1733682374530,6.5987551,235.41,235.37,9.12157223]
[1733682374732,6.5987551,235.41,235.39,2.1228]
[1733682374932,1.88,235.45,235.4,4.92350768]
[1733682375134,6.5987551,235.42,235.35,6.5987551]
[1733682375333,6.5987551,235.42,235.39,2.1227]
[1733682375528,6.5987551,235.42,235.4,4.92208477]
[1733682375722,6.5987551,235.42,235.41,1.06226371]
[1733682376333,6.5987551,235.42,235.37,2.1229]
[1733682376632,6.5987551,235.39,235.38,6.62098119]
[1733682377023,6.5987551,235.39,235.38,4.92130543]
[1733682377230,6.5987551,235.39,235.38,6.62102417]
[1733682377427,1.88,235.44,235.38,6.62102417]
[1733682377633,6.5987551,235.4,235.39,6.62102417]
[1733682378126,2.1225,235.42,235.39,3.68370528]
[1733682378325,6.5987551,235.4,235.37,2.1229]
[1733682378527,6.5987551,235.4,235.38,6.61926181]
[1733682378727,1.88,235.43,235.39,4.9196112]
[1733682378926,6.5987551,235.42,235.4,1.06228163]
[1733682379128,6.5987551,235.42,235.41,1.06228163]
[1733682380840,8.7212551,235.42,235.41,1.06228163]
[1733682381038,8.7212551,235.42,235.37,2.123]
[1733682381241,6.5987551,235.4,235.38,6.6172224]
[1733682381440,6.5987551,235.4,235.39,1.06228168]
[1733682381837,6.5987551,235.4,235.39,4.91742713]
[1733682382240,6.5987551,235.4,235.39,1.06228168]
[1733682382936,6.5987551,235.4,235.39,3.18508168]
[1733682383638,6.5987551,235.41,235.39,2.1228]
[1733682383840,6.5987551,235.41,235.4,1.06227528]
[1733682384243,6.5987551,235.41,235.39,2.1228]
[1733682384845,6.5987551,235.41,235.4,1.06229226]
[1733682385238,6.5987551,235.41,235.38,2.1229]
[1733682385439,6.5987551,235.39,235.38,2.1229]
[1733682385643,6.5987551,235.39,235.38,4.91585341]
[1733682385945,6.5987551,235.39,235.38,1.06230228]
[1733682386537,8.7215551,235.39,235.34,2.1232]
[1733682386744,6.5987551,235.36,235.35,6.6161888]
[1733682386944,6.5987551,235.36,235.35,1.0624367]
[1733682387240,6.5987551,235.36,235.35,3.68040436]
[1733682387440,6.5987551,235.36,235.35,1.0624367]
[1733682388446,2.1229,235.38,235.35,1.0624367]
[1733682388447,6.5987551,235.38,235.35,1.0624367]
[1733682388641,6.5987551,235.38,235.31,2.6149]
[1733682388840,6.5987551,235.38,235.32,6.61629953]
[1733682389145,6.5987551,235.38,235.33,6.61629953]
[1733682389345,6.5987551,235.38,235.34,3.18564012]
[1733682389544,6.5987551,235.38,235.35,1.06244012]
[1733682389746,6.5987551,235.38,235.34,2.1232]
[1733682390043,6.5987551,235.36,235.35,1.06246921]
[1733682390747,6.5987551,235.36,235.31,1.3057]
[1733682390949,6.5987551,235.36,235.32,6.61667344]
[1733682391248,6.5987551,235.36,235.33,4.91670171]
[1733682391437,1.88,235.39,235.34,1.06248233]
[1733682391639,2.123,235.37,235.35,1.06248233]
[1733682391842,2.123,235.37,235.3,1.2877]
[1733682392041,6.5987551,235.33,235.31,6.61681236]
[1733682392245,6.5987551,235.33,235.32,4.91679705]
[1733682393243,6.5987551,235.33,235.32,2.29851503]
[1733682393443,1.3027,235.48,235.32,19.2831516]
[1733682393444,6.5987551,235.42,235.32,19.2831516]
[1733682393641,6.5987551,235.42,235.36,6.5987551]
[1733682393947,6.5987551,235.42,235.37,1.06250957]
[1733682394242,6.5987551,235.42,235.36,6.5987551]
[1733682394444,6.5987551,235.42,235.38,1.06231759]
[1733682394649,6.5987551,235.42,235.38,2.1229]
[1733682395744,6.5987551,235.4,235.38,2.1229]
[1733682398149,6.5987551,235.44,235.4,2.1226]
[1733682398450,6.5987551,235.44,235.37,6.5987551]
[1733682398649,6.5987551,235.44,235.38,1.06219184]
[1733682398845,6.5987551,235.44,235.39,1.06219184]
[1733682399051,6.5987551,235.42,235.37,6.5987551]
[1733682399251,6.5987551,235.42,235.4,2.1228]
[1733682399848,2.1223,235.45,235.4,2.1228]
[1733682400050,6.5987551,235.42,235.4,2.1228]
[1733682400653,6.5987551,235.42,235.33,1.3454]
[1733682400852,6.5987551,235.39,235.34,6.61441872]
[1733682401148,6.5987551,235.39,235.35,6.61441872]
[1733682401350,1.88,235.46,235.36,1.06228297]
[1733682401654,6.5987551,235.41,235.37,1.06228297]
[1733682401951,6.5987551,235.41,235.34,6.5987551]
[1733682402246,6.5987551,235.39,235.35,2.29791616]
[1733682402448,6.5987551,235.39,235.36,1.06231462]
[1733682402648,6.5987551,235.39,235.32,8.4787551]
[1733682402847,6.5987551,235.39,235.33,6.6157291]
[1733682403046,6.5987551,235.39,235.34,2.76227612]
[1733682403247,6.5987551,235.39,235.32,8.4787551]
[1733682403248,6.5987551,235.39,235.35,1.06241389]
[1733682403448,6.5987551,235.39,235.36,1.06241389]
[1733682403655,6.5987551,235.39,235.35,2.1231]
[1733682403958,6.5987551,235.39,235.36,1.06243455]
[1733682404158,6.5987551,235.39,235.36,2.123]
[1733682404552,6.5987551,235.39,235.37,1.06243059]
[1733682404753,6.5987551,235.39,235.36,2.123]
[1733682404953,6.5987551,235.39,235.37,1.0624011]
[1733682405252,6.5987551,235.39,235.36,2.123]
[1733682405453,6.5987551,235.39,235.37,1.06240309]
[1733682405756,6.5987551,235.39,235.36,2.123]
[1733682405956,6.5987551,235.39,235.37,1.06239806]
[1733682406151,6.5987551,235.39,235.38,1.06239806]
[1733682406757,2.1225,235.42,235.38,1.06239806]
[1733682406955,6.5987551,235.41,235.39,1.06239806]
[1733682407153,6.5987551,235.41,235.38,2.1228]
[1733682407351,6.5987551,235.41,235.4,1.06228702]
[1733682409158,6.5987551,235.41,235.39,2.1228]
[1733682410055,6.5987551,235.41,235.32,1.88]
[1733682410254,6.5987551,235.39,235.38,2.1228]
[1733682411260,6.5987551,235.39,235.36,2.123]
[1733682411460,6.5987551,235.37,235.31,6.5987551]
[1733682411661,6.5987551,235.37,235.32,6.62231576]
[1733682411861,6.5987551,235.37,235.33,6.62231576]
[1733682412063,6.5987551,235.37,235.34,1.06243765]
[1733682412362,1.88,235.44,235.29,1.88]
[1733682412363,2.1229,235.38,235.29,6.5987551]
[1733682412563,6.5987551,235.35,235.31,6.62314644]
[1733682412753,6.5987551,235.33,235.32,6.62314644]
[1733682413062,6.5987551,235.33,235.32,1.06249711]
[1733682413460,6.5987551,235.33,235.29,2.1236]
[1733682413655,6.5987551,235.33,235.3,1.06264509]
[1733682413862,8.7220551,235.33,235.31,1.06264509]
[1733682414171,8.7220551,235.33,235.28,2.1237]
[1733682414362,6.5987551,235.31,235.29,1.06266633]
[1733682414666,6.5987551,235.31,235.3,1.06266633]
[1733682415464,6.5987551,235.31,235.26,6.5987551]
[1733682415764,6.5987551,235.31,235.27,6.6221314]
[1733682415964,6.5987551,235.31,235.28,1.06268793]
[1733682416265,6.5987551,235.31,235.29,1.06268793]
[1733682416470,6.5987551,235.31,235.22,3.189]
[1733682416664,6.5987551,235.31,235.24,6.5987551]
[1733682416665,8.7222551,235.31,235.24,6.5987551]
[1733682416865,8.7222551,235.31,235.25,10.8149642]
[1733682417066,8.7222551,235.31,235.26,10.8149642]
[1733682417269,8.7222551,235.31,235.27,9.57612282]
[1733682417565,8.7222551,235.31,235.28,6.62053971]
[1733682417761,8.7222551,235.31,235.29,6.62053971]
[1733682417962,8.7222551,235.31,235.3,1.06268062]
[1733682419668,8.7222551,235.31,235.26,2.1239]
[1733682419864,8.7222551,235.31,235.24,6.5987551]
[1733682420061,8.7222551,235.31,235.27,2.1238]
[1733682420462,8.7222551,235.31,235.28,1.70046559]
[1733682420666,8.7222551,235.31,235.28,1.06279099]
[1733682420866,8.7222551,235.31,235.29,1.06279099]
[1733682421168,8.7222551,235.31,235.27,2.1238]
[1733682421363,8.7222551,235.31,235.28,1.06279398]
[1733682421570,8.7222551,235.31,235.29,1.06277201]
[1733682421769,8.7222551,235.31,235.3,1.06277201]
[1733682422465,8.7222551,235.31,235.27,2.1238]
[1733682422664,8.7222551,235.31,235.28,1.0627986]
[1733682422864,8.7222551,235.31,235.29,1.0627986]
[1733682423061,8.7222551,235.31,235.27,2.1238]
[1733682423369,8.7222551,235.31,235.28,1.0627986]
[1733682423570,8.7222551,235.31,235.29,1.0627986]
[1733682423768,8.7222551,235.31,235.27,2.1238]
[1733682423974,8.7222551,235.31,235.28,1.06277165]
[1733682424273,8.7222551,235.31,235.29,1.06277165]
[1733682424465,8.7222551,235.31,235.26,2.1239]
[1733682424670,8.7222551,235.31,235.27,6.61602371]
[1733682424866,8.7222551,235.31,235.26,2.1239]
[1733682425074,8.7222551,235.31,235.27,3.67991427]
[1733682425268,8.7222551,235.31,235.26,2.1239]
[1733682425467,8.7222551,235.31,235.27,1.06278183]
[1733682425668,8.7222551,235.31,235.26,2.1239]
[1733682425877,8.7222551,235.31,235.27,1.06278246]
[1733682426070,1.9,235.32,235.26,6.5987551]
[1733682426275,1.9,235.32,235.27,1.0627948]
[1733682426465,1.9,235.32,235.28,1.0627948]
[1733682426767,1.9,235.32,235.3,2.1236]
[1733682428871,1.9,235.32,235.26,6.5987551]
[1733682429068,1.9,235.32,235.27,2.76297567]
[1733682429273,1.9,235.32,235.28,1.06268295]
[1733682429569,1.9,235.32,235.26,6.5987551]
[1733682429774,6.5987551,235.31,235.28,2.1238]
[1733682430365,6.5987551,235.31,235.29,1.06267304]
[1733682430571,6.5987551,235.31,235.28,2.1238]
[1733682431175,8.4987551,235.32,235.28,2.1238]
[1733682431377,8.4987551,235.32,235.29,1.06268822]
[1733682431577,8.4987551,235.32,235.29,2.1237]
[1733682432075,8.4987551,235.32,235.3,1.06267355]
[1733682432278,8.4987551,235.32,235.28,2.1238]
[1733682432472,8.4987551,235.32,235.29,1.06268851]
[1733682432673,8.4987551,235.32,235.3,1.06268851]
[1733682432876,8.4987551,235.32,235.28,2.1238]
[1733682433071,8.4987551,235.32,235.29,1.06269108]
[1733682433271,8.4987551,235.32,235.28,2.1238]
[1733682433272,8.4987551,235.32,235.3,1.06269108]
[1733682433579,8.4987551,235.32,235.28,2.1238]
[1733682433871,8.4987551,235.32,235.29,1.06268868]
[1733682434074,8.4987551,235.32,235.3,1.06268868]
[1733682434275,8.4987551,235.32,235.28,2.1238]
[1733682434477,8.4987551,235.32,235.29,1.06269254]
[1733682434676,8.4987551,235.32,235.3,1.06269254]
[1733682434877,8.4987551,235.32,235.28,2.1238]
[1733682435078,8.4987551,235.32,235.29,1.06268868]
[1733682435380,8.4987551,235.32,235.28,2.1238]
[1733682436283,8.4987551,235.32,235.29,1.06274777]
[1733682436476,8.4987551,235.32,235.25,6.5987551]
[1733682436678,6.5987551,235.3,235.27,2.1239]
[1733682436877,6.5987551,235.3,235.25,6.5987551]
[1733682437081,6.5987551,235.3,235.23,8.5187551]
[1733682437279,6.5987551,235.3,235.24,2.29752078]
[1733682437477,6.5987551,235.3,235.26,2.1239]
[1733682437678,6.5987551,235.3,235.27,1.06283083]
[1733682437875,6.5987551,235.3,235.26,2.1239]
[1733682438081,6.5987551,235.3,235.27,1.06283061]
[1733682438277,6.5987551,235.3,235.26,2.1239]
[1733682438477,6.5987551,235.3,235.27,1.06283061]
[1733682438781,6.5987551,235.3,235.26,2.1239]
[1733682438976,6.5987551,235.3,235.27,1.06282667]
[1733682439281,6.5987551,235.3,235.26,2.1239]
[1733682439482,6.5987551,235.3,235.27,1.06282667]
[1733682439785,6.5987551,235.3,235.26,2.1239]
[1733682440477,6.5987551,235.3,235.18,1.2836]
[1733682440478,6.5987551,235.28,235.18,1.2836]
[1733682440684,6.5987551,235.25,235.19,11.9777827]
[1733682440879,6.5987551,235.25,235.2,6.6136041]
[1733682441075,6.5987551,235.25,235.21,1.06293331]
[1733682441281,6.5987551,235.25,235.22,3.18713331]
[1733682441477,6.5987551,235.25,235.22,2.1242]
[1733682443381,10.6426551,235.27,235.22,2.1242]
[1733682443976,1.92,235.27,235.21,6.5987551]
[1733682444179,1.92,235.31,235.25,6.5987551]
[1733682445381,1.92,235.31,235.27,2.1238]
[1733682445781,1.92,235.31,235.28,2.1238]
[1733682446584,1.92,235.31,235.29,2.1237]
[1733682448180,1.92,235.31,235.3,2.1236]
[1733682448484,6.5987551,235.33,235.3,1.06272307]
[1733682448682,6.5987551,235.33,235.28,2.1237]
[1733682448881,6.5987551,235.33,235.29,1.06271911]
[1733682449077,6.5987551,235.33,235.3,1.06271911]
[1733682449280,6.5987551,235.33,235.28,2.1237]
[1733682449484,6.5987551,235.33,235.29,1.0626997]
[1733682449683,6.5987551,235.33,235.3,1.0626997]
[1733682449887,6.5987551,235.33,235.3,2.1235]
[1733682450382,6.5987551,235.31,235.22,1.92]
[1733682450576,6.5987551,235.31,235.25,6.5987551]
[1733682450779,6.5987551,235.31,235.26,6.61570595]
[1733682450977,6.5987551,235.31,235.28,2.1237]
[1733682451188,6.5987551,235.31,235.29,1.06272885]
[1733682451381,6.5987551,235.31,235.3,1.06272885]
[1733682453186,8.7222551,235.31,235.3,1.06272885]
[1733682453590,6.5987551,235.31,235.21,8.4987551]
[1733682453782,6.5987551,235.28,235.22,10.81273431]
[1733682453977,6.5987551,235.28,235.23,9.74992979]
[1733682454183,6.5987551,235.28,235.24,9.74992979]
[1733682454388,1.9,235.3,235.25,5.55767]
[1733682454389,6.5987551,235.26,235.25,5.55767]
[1733682454788,6.5987551,235.26,235.25,2.93750763]
[1733682454989,6.5987551,235.26,235.25,1.70053112]
[1733682455287,6.5987551,235.26,235.2,6.5987551]
[1733682455486,6.5987551,235.26,235.21,9.75623245]
[1733682455690,6.5987551,235.26,235.22,7.68491016]
[1733682455990,6.5987551,235.26,235.23,5.56061016]
[1733682456188,1.9,235.3,235.24,5.56061016]
[1733682456391,1.9,235.3,235.25,5.56061016]
[1733682456588,1.9,235.3,235.25,6.5987551]
[1733682456887,4.0236,235.3,235.26,5.56121674]
[1733682457187,4.0236,235.3,235.25,6.5987551]
[1733682457391,4.0236,235.3,235.26,5.56263683]
[1733682457588,4.0236,235.3,235.25,6.5987551]
[1733682457790,4.0236,235.3,235.26,2.93895043]
[1733682458094,4.0236,235.3,235.27,3.86231761]
[1733682458294,4.0236,235.3,235.25,6.5987551]
[1733682458593,4.0236,235.3,235.26,7.68711982]
[1733682458795,4.0236,235.3,235.26,2.124]
[1733682458990,4.0236,235.3,235.27,5.56288697]
[1733682459190,2.1236,235.3,235.28,5.56310872]
[1733682459391,2.1236,235.3,235.26,2.124]
[1733682459392,2.1239,235.27,235.21,2.1244]
[1733682459592,6.5987551,235.27,235.22,9.76188836]
[1733682459895,6.5987551,235.27,235.23,5.56333273]
[1733682460090,6.5987551,235.27,235.24,3.86283085]
[1733682460397,6.5987551,235.27,235.21,6.5987551]
[1733682460694,2.124,235.26,235.22,5.987103]
[1733682460895,6.5987551,235.27,235.23,5.56355088]
[1733682461089,6.5987551,235.27,235.2,6.5987551]
[1733682461292,2.1241,235.25,235.21,11.88570869]
[1733682461494,2.1241,235.25,235.22,5.56319316]
[1733682461694,2.1241,235.25,235.23,5.56319316]
[1733682461894,2.1241,235.25,235.21,2.1243]
[1733682462096,2.1241,235.25,235.22,5.56311722]
[1733682462290,2.1241,235.25,235.23,2.62388032]
[1733682462496,2.1241,235.25,235.21,2.1243]
[1733682462696,2.1241,235.25,235.22,5.56284844]
[1733682462999,2.1241,235.25,235.21,2.1243]
[1733682463194,2.1241,235.25,235.22,5.56245671]
[1733682463392,2.1241,235.25,235.21,2.1243]
[1733682463587,8.7226551,235.27,235.22,7.68671036]
[1733682463888,6.5987551,235.29,235.22,8.7230551]
[1733682464088,1.9,235.32,235.24,6.5987551]
[1733682464089,6.5987551,235.3,235.24,6.5987551]
[1733682464401,2.1238,235.29,235.25,2.124]
[1733682465497,1.9,235.32,235.28,6.5987551]
[1733682466202,1.9,235.32,235.29,1.06272062]
[1733682466390,1.9,235.32,235.28,6.5987551]
[1733682466595,1.9,235.32,235.3,2.1236]
[1733682467100,2.6414,235.46,235.3,6.5987551]
[1733682467304,1.9,235.4,235.35,6.5987551]
[1733682467594,4.0228,235.4,235.35,8.7218551]
[1733682468500,6.5987551,235.39,235.35,2.1231]
[1733682469998,6.5987551,235.39,235.36,2.123]
[1733682470393,52.28517187,235.41,235.36,2.123]
[1733682470599,8.7213551,235.41,235.36,2.123]
[1733682470794,8.7213551,235.41,235.37,2.123]
[1733682472104,1.9,235.42,235.37,6.5987551]
[1733682473098,1.9,235.42,235.38,2.1229]
[1733682473307,8.4987551,235.42,235.38,2.1229]
[1733682474100,10.6214551,235.42,235.36,2.1231]
[1733682474306,6.5987551,235.4,235.36,2.1231]
[1733682475103,8.4987551,235.42,235.37,2.1231]
[1733682475302,8.4987551,235.42,235.35,6.5987551]
[1733682475601,8.4987551,235.42,235.36,1.0622918]
[1733682475801,8.4987551,235.42,235.35,6.5987551]
[1733682476001,1.9,235.44,235.37,6.5987551]
[1733682476204,8.4987551,235.44,235.37,6.5987551]
[1733682476405,6.5987551,235.44,235.37,6.5987551]
[1733682476610,6.5987551,235.44,235.39,2.1229]
[1733682477105,6.5987551,235.44,235.37,6.5987551]
[1733682477302,6.5987551,235.42,235.37,2.123]
[1733682477705,6.5987551,235.4,235.35,6.5987551]
[1733682478499,6.5987551,235.38,235.32,1.9]
[1733682478702,6.5987551,235.38,235.33,1.06238173]
[1733682478902,6.5987551,235.38,235.32,1.9]
[1733682479608,8.7217551,235.38,235.33,2.1234]
[1733682480006,1.9,235.41,235.33,6.5987551]
[1733682480007,6.5987551,235.4,235.33,6.5987551]
[1733682480604,8.7216551,235.4,235.34,2.1233]
[1733682481102,6.5987551,235.42,235.35,6.5987551]
[1733682481709,6.5987551,235.42,235.37,2.1231]
[1733682481908,8.4987551,235.44,235.37,8.7218551]
[1733682482807,2.1226,235.43,235.37,8.7218551]
[1733682483198,1.9,235.44,235.37,6.5987551]
[1733682483404,1.9,235.44,235.39,6.5987551]
[1733682483805,6.5987551,235.43,235.37,6.5987551]
[1733682484700,6.5987551,235.43,235.39,2.1228]
[1733682485103,4.0225,235.44,235.39,2.1228]
[1733682485306,10.6212551,235.44,235.39,2.1228]